[Event "*** Titled Tuesday Blitz"]
[Site "Chess.com"]
[Date "2021.04.06"]
[Round "1"]
[White "Bulldog167"]
[Black "ViktoriyaTarasova"]
[Result "1/2-1/2"]
[WhiteElo "2797"]
[BlackElo "2433"]
[TimeControl "180+1"]
[EndTime "10:08:46 PDT"]
[Termination "Game drawn by repetition"]

1. c4 {[%clk 0:03:00.9]} 1... Nf6 {[%clk 0:02:58.9]} 2. Nc3 {[%clk 0:03:00.7]}
2... e5 {[%clk 0:02:58.4]} 3. Nf3 {[%clk 0:02:58.8]} 3... Nc6 {[%clk 0:02:58.2]}
4. e4 {[%clk 0:02:57.7]} 4... Bb4 {[%clk 0:02:57.9]} 5. d3 {[%clk 0:02:57.3]}
5... Bxc3+ {[%clk 0:02:55.5]} 6. bxc3 {[%clk 0:02:56.8]} 6... d6 {[%clk
0:02:55.5]} 7. g3 {[%clk 0:02:46.4]} 7... O-O {[%clk 0:02:54.2]} 8. Bg2 {[%clk
0:02:45.6]} 8... Nd7 {[%clk 0:02:46.2]} 9. O-O {[%clk 0:02:44]} 9... Nc5 {[%clk
0:02:41]} 10. Be3 {[%clk 0:02:42.6]} 10... f5 {[%clk 0:02:36.4]} 11. exf5 {[%clk
0:02:20]} 11... Bxf5 {[%clk 0:02:36.1]} 12. d4 {[%clk 0:02:20.3]} 12... Nd7
{[%clk 0:01:54.8]} 13. Nh4 {[%clk 0:02:04.8]} 13... Kh8 {[%clk 0:01:45.4]} 14.
Nxf5 {[%clk 0:01:40.1]} 14... Rxf5 {[%clk 0:01:44.7]} 15. Be4 {[%clk 0:01:40.6]}
15... Rf8 {[%clk 0:01:42.5]} 16. c5 {[%clk 0:01:33.7]} 16... Qe7 {[%clk
0:01:31.4]} 17. cxd6 {[%clk 0:01:29.4]} 17... cxd6 {[%clk 0:01:29.4]} 18. Re1
{[%clk 0:01:18.1]} 18... Nf6 {[%clk 0:01:23]} 19. Bg2 {[%clk 0:01:17]} 19...
Rad8 {[%clk 0:01:16.1]} 20. Qb3 {[%clk 0:01:16.4]} 20... Qc7 {[%clk 0:01:13.5]}
21. h3 {[%clk 0:01:09.1]} 21... Na5 {[%clk 0:01:10.7]} 22. Qb4 {[%clk
0:01:07.5]} 22... b6 {[%clk 0:01:06.4]} 23. Rad1 {[%clk 0:01:06.4]} 23... Nc4
{[%clk 0:01:04]} 24. dxe5 {[%clk 0:01:04.7]} 24... dxe5 {[%clk 0:01:02.5]} 25.
Bg5 {[%clk 0:00:59.8]} 25... Qc5 {[%clk 0:00:53.5]} 26. Qxc5 {[%clk 0:00:56.6]}
26... bxc5 {[%clk 0:00:53.2]} 27. Bf1 {[%clk 0:00:49.1]} 27... Rxd1 {[%clk
0:00:42.5]} 28. Rxd1 {[%clk 0:00:50]} 28... Nb6 {[%clk 0:00:40.5]} 29. Bg2
{[%clk 0:00:37.7]} 29... h6 {[%clk 0:00:38.5]} 30. Be3 {[%clk 0:00:37.5]} 30...
Na4 {[%clk 0:00:38.4]} 31. c4 {[%clk 0:00:32.6]} 31... Nb2 {[%clk 0:00:35.2]}
32. Rc1 {[%clk 0:00:27.7]} 32... Rc8 {[%clk 0:00:33.3]} 33. Rc2 {[%clk
0:00:24.4]} 33... Na4 {[%clk 0:00:31.9]} 34. Kf1 {[%clk 0:00:18.8]} 34... Nb6
{[%clk 0:00:30.4]} 35. Ke2 {[%clk 0:00:19.1]} 35... Kg8 {[%clk 0:00:28.5]} 36.
Kd3 {[%clk 0:00:15.3]} 36... Kf7 {[%clk 0:00:26.5]} 37. Kc3 {[%clk 0:00:15.6]}
37... Ke6 {[%clk 0:00:24.4]} 38. h4 {[%clk 0:00:14.7]} 38... Ke7 {[%clk
0:00:22.5]} 39. Rd2 {[%clk 0:00:12.8]} 39... Nfd7 {[%clk 0:00:19.8]} 40. Bh3
{[%clk 0:00:11.1]} 40... Rc7 {[%clk 0:00:20.1]} 41. Bxd7 {[%clk 0:00:10.5]}
41... Nxd7 {[%clk 0:00:17.3]} 42. f4 {[%clk 0:00:10.8]} 42... exf4 {[%clk
0:00:15.7]} 43. Bxf4 {[%clk 0:00:11.7]} 43... Rb7 {[%clk 0:00:16]} 44. Re2+
{[%clk 0:00:10]} 44... Kd8 {[%clk 0:00:15.3]} 45. Bd6 {[%clk 0:00:10.5]} 45...
Rb1 {[%clk 0:00:14.1]} 46. Rd2 {[%clk 0:00:06.9]} 46... Rc1+ {[%clk 0:00:14.1]}
47. Kb2 {[%clk 0:00:06.7]} 47... Rg1 {[%clk 0:00:12.6]} 48. Bxc5 {[%clk
0:00:06.6]} 48... Rxg3 {[%clk 0:00:12]} 49. Bxa7 {[%clk 0:00:07]} 49... Rg4
{[%clk 0:00:11.6]} 50. c5 {[%clk 0:00:06.9]} 50... Kc7 {[%clk 0:00:11.6]} 51. h5
{[%clk 0:00:06.8]} 51... Rg5 {[%clk 0:00:11.3]} 52. Rh2 {[%clk 0:00:03.7]} 52...
Kb7 {[%clk 0:00:08.5]} 53. Bb6 {[%clk 0:00:02.5]} 53... Nxb6 {[%clk 0:00:08.4]}
54. cxb6 {[%clk 0:00:03.4]} 54... Kxb6 {[%clk 0:00:09]} 55. Kb3 {[%clk
0:00:04.3]} 55... Rb5+ {[%clk 0:00:08.4]} 56. Kc4 {[%clk 0:00:04.8]} 56... Rc5+
{[%clk 0:00:08.8]} 57. Kd4 {[%clk 0:00:05.4]} 57... Rg5 {[%clk 0:00:08.7]} 58.
Ke4 {[%clk 0:00:05.8]} 58... Ka5 {[%clk 0:00:08.1]} 59. Kf4 {[%clk 0:00:05.7]}
59... Ka4 {[%clk 0:00:08.4]} 60. Rh3 {[%clk 0:00:05.7]} 60... Ka5 {[%clk
0:00:08.1]} 61. Rh2 {[%clk 0:00:03.3]} 61... Ka4 {[%clk 0:00:08.4]} 62. Kf3
{[%clk 0:00:03.3]} 62... Ka5 {[%clk 0:00:08.7]} 63. Rh4 {[%clk 0:00:02.7]} 63...
Kb5 {[%clk 0:00:08.5]} 64. a4+ {[%clk 0:00:02.9]} 64... Ka5 {[%clk 0:00:09.1]}
65. Ke3 {[%clk 0:00:02.1]} 65... Ka6 {[%clk 0:00:09.7]} 66. Rh3 {[%clk
0:00:01.3]} 66... Ka5 {[%clk 0:00:10.1]} 67. Rh4 {[%clk 0:00:02.2]} 67... Ka6
{[%clk 0:00:10.2]} 68. Kf3 {[%clk 0:00:03.1]} 68... Ka5 {[%clk 0:00:10.5]} 69.
Ke3 {[%clk 0:00:03.2]} 1/2-1/2

[Event "*** Titled Tuesday Blitz"]
[Site "Chess.com"]
[Date "2021.04.06"]
[Round "1"]
[White "Mazanchenko_Dmitry"]
[Black "Keks2017"]
[Result "0-1"]
[WhiteElo "2202"]
[BlackElo "2533"]
[TimeControl "180+1"]
[EndTime "10:08:50 PDT"]
[Termination "Keks2017 won on time"]

1. e4 {[%clk 0:03:00.1]} 1... e6 {[%clk 0:02:59.6]} 2. d4 {[%clk 0:02:59]} 2...
d5 {[%clk 0:02:59.4]} 3. Nc3 {[%clk 0:02:59.9]} 3... Nf6 {[%clk 0:02:58.6]} 4.
Bg5 {[%clk 0:02:56.6]} 4... Be7 {[%clk 0:02:58]} 5. e5 {[%clk 0:02:54.7]} 5...
Nfd7 {[%clk 0:02:57.8]} 6. h4 {[%clk 0:02:54.8]} 6... a6 {[%clk 0:02:56.3]} 7.
Qg4 {[%clk 0:02:45.2]} 7... h5 {[%clk 0:02:55.2]} 8. Qg3 {[%clk 0:02:44.5]} 8...
g6 {[%clk 0:02:54.7]} 9. Nce2 {[%clk 0:02:36.5]} 9... c5 {[%clk 0:02:53.9]} 10.
c3 {[%clk 0:02:36.2]} 10... Nc6 {[%clk 0:02:53]} 11. Nf3 {[%clk 0:02:31.4]}
11... b5 {[%clk 0:02:52]} 12. O-O-O {[%clk 0:02:21.1]} 12... b4 {[%clk
0:02:51.3]} 13. Rd2 {[%clk 0:02:02.3]} 13... bxc3 {[%clk 0:02:49.5]} 14. bxc3
{[%clk 0:02:03.2]} 14... Rb8 {[%clk 0:02:44.7]} 15. Rb2 {[%clk 0:02:00.9]} 15...
Rxb2 {[%clk 0:02:43.8]} 16. Kxb2 {[%clk 0:02:01.8]} 16... Nb6 {[%clk 0:02:35.4]}
17. Bxe7 {[%clk 0:01:45.9]} 17... Nxe7 {[%clk 0:02:26.6]} 18. Nc1 {[%clk
0:01:30.5]} 18... c4 {[%clk 0:02:24.3]} 19. Ng5 {[%clk 0:01:24.8]} 19... Na4+
{[%clk 0:02:20.4]} 20. Kc2 {[%clk 0:01:23.9]} 20... Qb6 {[%clk 0:02:18.9]} 21.
Nb3 {[%clk 0:01:10.6]} 21... Bd7 {[%clk 0:02:08.1]} 22. Be2 {[%clk 0:00:56.3]}
22... Nf5 {[%clk 0:01:58.9]} 23. Qf4 {[%clk 0:00:49]} 23... cxb3+ {[%clk
0:01:49.9]} 24. axb3 {[%clk 0:00:47.2]} 24... Ke7 {[%clk 0:01:49.7]} 25. Rb1
{[%clk 0:00:35.2]} 25... Nxc3 {[%clk 0:01:42.5]} 26. Kxc3 {[%clk 0:00:31.1]}
26... Rc8+ {[%clk 0:01:42.1]} 27. Kb2 {[%clk 0:00:26.5]} 27... Qxd4+ {[%clk
0:01:30.8]} 28. Qxd4 {[%clk 0:00:25.6]} 28... Nxd4 {[%clk 0:01:30.7]} 29. Bxa6
{[%clk 0:00:26.5]} 29... Rc2+ {[%clk 0:01:29.4]} 30. Ka3 {[%clk 0:00:21.5]}
30... Rxf2 {[%clk 0:01:29.1]} 31. b4 {[%clk 0:00:17.5]} 31... Rxg2 {[%clk
0:01:22.6]} 32. b5 {[%clk 0:00:16.8]} 32... Rh2 {[%clk 0:01:06.7]} 33. b6 {[%clk
0:00:14]} 33... Nc6 {[%clk 0:01:06.1]} 34. Bb5 {[%clk 0:00:12.1]} 34... Nb8
{[%clk 0:00:37.3]} 35. Bxd7 {[%clk 0:00:11.3]} 35... Nxd7 {[%clk 0:00:37.2]} 36.
b7 {[%clk 0:00:10.9]} 36... Rxh4 {[%clk 0:00:37]} 37. Rc1 {[%clk 0:00:10.5]}
37... Rc4 {[%clk 0:00:33.4]} 38. Rxc4 {[%clk 0:00:09.1]} 38... dxc4 {[%clk
0:00:33]} 39. Kb4 {[%clk 0:00:10]} 39... f6 {[%clk 0:00:29.8]} 40. exf6+ {[%clk
0:00:09.3]} 40... Kxf6 {[%clk 0:00:30]} 41. Ne4+ {[%clk 0:00:09.4]} 41... Ke5
{[%clk 0:00:28.9]} 42. Nc5 {[%clk 0:00:09.2]} 42... Nb8 {[%clk 0:00:28.9]} 43.
Kxc4 {[%clk 0:00:08.7]} 43... h4 {[%clk 0:00:28.4]} 44. Kb5 {[%clk 0:00:08.8]}
44... h3 {[%clk 0:00:27.7]} 45. Na6 {[%clk 0:00:08.9]} 45... h2 {[%clk
0:00:23.1]} 46. Nxb8 {[%clk 0:00:08.4]} 46... h1=Q {[%clk 0:00:23.2]} 47. Nc6+
{[%clk 0:00:08.8]} 47... Kf5 {[%clk 0:00:20.1]} 48. b8=Q {[%clk 0:00:08.9]}
48... Qb1+ {[%clk 0:00:20.6]} 49. Nb4 {[%clk 0:00:08.9]} 49... e5 {[%clk
0:00:17.8]} 50. Qf8+ {[%clk 0:00:07.6]} 50... Kg4 {[%clk 0:00:17.4]} 51. Qd6
{[%clk 0:00:06.1]} 51... Qf1+ {[%clk 0:00:16.2]} 52. Kc5 {[%clk 0:00:05.1]}
52... Qf4 {[%clk 0:00:15]} 53. Nd5 {[%clk 0:00:03.7]} 53... Qc1+ {[%clk
0:00:14.5]} 54. Kb6 {[%clk 0:00:03.4]} 54... Qb2+ {[%clk 0:00:14.6]} 55. Kc7
{[%clk 0:00:03.3]} 55... g5 {[%clk 0:00:15]} 56. Nf6+ {[%clk 0:00:01.4]} 56...
Kf5 {[%clk 0:00:15]} 57. Nd5 {[%clk 0:00:02]} 57... Qc2+ {[%clk 0:00:14.9]} 58.
Kd7 {[%clk 0:00:02.4]} 58... Kg4 {[%clk 0:00:13.8]} 59. Ke7 {[%clk 0:00:03.3]}
59... Qh7+ {[%clk 0:00:13.4]} 60. Kd8 {[%clk 0:00:02.9]} 60... Qg8+ {[%clk
0:00:13.3]} 61. Kc7 {[%clk 0:00:03.8]} 61... Qf7+ {[%clk 0:00:13.5]} 62. Qd7+
{[%clk 0:00:04.7]} 62... Qxd7+ {[%clk 0:00:12.8]} 63. Kxd7 {[%clk 0:00:05.6]}
63... e4 {[%clk 0:00:13.3]} 64. Ke6 {[%clk 0:00:06.5]} 64... Kf3 {[%clk
0:00:13.5]} 65. Ke5 {[%clk 0:00:06.5]} 65... g4 {[%clk 0:00:13.8]} 66. Ne3
{[%clk 0:00:06.8]} 66... Kxe3 {[%clk 0:00:13.4]} 67. Kf5 {[%clk 0:00:07.7]}
67... Kf3 {[%clk 0:00:13.8]} 68. Ke5 {[%clk 0:00:07.3]} 68... e3 {[%clk
0:00:14.7]} 69. Kd4 {[%clk 0:00:08.2]} 69... e2 {[%clk 0:00:15.4]} 0-1

[Event "*** Titled Tuesday Blitz"]
[Site "Chess.com"]
[Date "2021.04.06"]
[Round "1"]
[White "VitaRasik"]
[Black "GM4life"]
[Result "1-0"]
[WhiteElo "2614"]
[BlackElo "2317"]
[TimeControl "180+1"]
[EndTime "10:08:52 PDT"]
[Termination "VitaRasik won by checkmate"]

1. e4 {[%clk 0:03:00.9]} 1... c5 {[%clk 0:02:59.7]} 2. Nf3 {[%clk 0:03:00.1]}
2... d6 {[%clk 0:03:00.2]} 3. Bb5+ {[%clk 0:02:59.7]} 3... Nd7 {[%clk
0:02:59.7]} 4. c3 {[%clk 0:02:59.3]} 4... Nf6 {[%clk 0:02:59.8]} 5. Bd3 {[%clk
0:02:59.1]} 5... g6 {[%clk 0:02:56.3]} 6. Bc2 {[%clk 0:02:58.4]} 6... Bg7 {[%clk
0:02:56.7]} 7. d4 {[%clk 0:02:58.3]} 7... O-O {[%clk 0:02:57]} 8. O-O {[%clk
0:02:58.1]} 8... b6 {[%clk 0:02:57]} 9. Re1 {[%clk 0:02:56.5]} 9... Bb7 {[%clk
0:02:57.2]} 10. h3 {[%clk 0:02:42.8]} 10... Qc7 {[%clk 0:02:55]} 11. Nbd2 {[%clk
0:02:41.3]} 11... Rac8 {[%clk 0:02:54.2]} 12. Bd3 {[%clk 0:02:40.9]} 12... Rfe8
{[%clk 0:02:52.9]} 13. Nf1 {[%clk 0:02:30.9]} 13... e5 {[%clk 0:02:52.8]} 14. d5
{[%clk 0:02:17.4]} 14... Nh5 {[%clk 0:02:52.5]} 15. Ng3 {[%clk 0:02:09.5]} 15...
Nxg3 {[%clk 0:02:49.9]} 16. fxg3 {[%clk 0:02:09]} 16... c4 {[%clk 0:02:44.5]}
17. Bc2 {[%clk 0:02:03.6]} 17... b5 {[%clk 0:02:44.6]} 18. g4 {[%clk 0:02:03.5]}
18... Nc5 {[%clk 0:02:41]} 19. Be3 {[%clk 0:02:01.8]} 19... a5 {[%clk
0:02:40.1]} 20. Qd2 {[%clk 0:01:59.9]} 20... Rb8 {[%clk 0:02:26.2]} 21. Rf1
{[%clk 0:01:58]} 21... Ba6 {[%clk 0:02:14.6]} 22. Bh6 {[%clk 0:01:54.8]} 22...
b4 {[%clk 0:02:13.2]} 23. Bxg7 {[%clk 0:01:50.5]} 23... Kxg7 {[%clk 0:02:10]}
24. Rf2 {[%clk 0:01:45.8]} 24... h6 {[%clk 0:01:58.6]} 25. Raf1 {[%clk
0:01:44.3]} 25... Re7 {[%clk 0:01:52.9]} 26. Qe3 {[%clk 0:01:12.9]} 26... Qb6
{[%clk 0:01:48]} 27. Nd2 {[%clk 0:01:12]} 27... bxc3 {[%clk 0:01:44.8]} 28. bxc3
{[%clk 0:01:11.4]} 28... Nd3 {[%clk 0:01:43.1]} 29. Qxb6 {[%clk 0:01:09]} 29...
Rxb6 {[%clk 0:01:42.8]} 30. Bxd3 {[%clk 0:00:56.9]} 30... cxd3 {[%clk
0:01:43.7]} 31. Nb3 {[%clk 0:00:54.9]} 31... a4 {[%clk 0:01:43.6]} 32. Na5
{[%clk 0:00:55]} 32... Rc7 {[%clk 0:01:20.9]} 33. Nc6 {[%clk 0:00:54]} 33... a3
{[%clk 0:01:07.1]} 34. Nd8 {[%clk 0:00:50.1]} 34... d2 {[%clk 0:00:54.6]} 35.
Rd1 {[%clk 0:00:49.2]} 35... Rb2 {[%clk 0:00:45.2]} 36. Rdxd2 {[%clk 0:00:48.9]}
36... Rxd2 {[%clk 0:00:41]} 37. Rxd2 {[%clk 0:00:48.8]} 37... Rxc3 {[%clk
0:00:41.9]} 38. Rf2 {[%clk 0:00:48.7]} 38... f6 {[%clk 0:00:39.9]} 39. Ne6+
{[%clk 0:00:41.8]} 39... Kf7 {[%clk 0:00:39.5]} 40. h4 {[%clk 0:00:42.2]} 40...
Ke7 {[%clk 0:00:32.7]} 41. g5 {[%clk 0:00:42]} 41... hxg5 {[%clk 0:00:32.5]} 42.
hxg5 {[%clk 0:00:42.3]} 42... fxg5 {[%clk 0:00:31.3]} 43. Nxg5 {[%clk
0:00:42.5]} 43... Rc1+ {[%clk 0:00:30.8]} 44. Kh2 {[%clk 0:00:42.3]} 44... Rf1
{[%clk 0:00:31.3]} 45. Rc2 {[%clk 0:00:39.8]} 45... Rf8 {[%clk 0:00:20.3]} 46.
Rc7+ {[%clk 0:00:38]} 46... Kd8 {[%clk 0:00:15.8]} 47. Ne6+ {[%clk 0:00:36.8]}
47... Ke8 {[%clk 0:00:11.5]} 48. Nxf8 {[%clk 0:00:36.9]} 48... Kxf8 {[%clk
0:00:12.4]} 49. Ra7 {[%clk 0:00:36.9]} 49... Bd3 {[%clk 0:00:12.3]} 50. Rxa3
{[%clk 0:00:34.1]} 50... Bxe4 {[%clk 0:00:12.7]} 51. Ra5 {[%clk 0:00:34.2]}
51... Ke8 {[%clk 0:00:12.5]} 52. Kg3 {[%clk 0:00:34.2]} 52... Kd7 {[%clk
0:00:12.8]} 53. Rb5 {[%clk 0:00:26.9]} 53... Kc7 {[%clk 0:00:12.7]} 54. a4
{[%clk 0:00:27]} 54... Bd3 {[%clk 0:00:12.9]} 55. Rb4 {[%clk 0:00:25.2]} 55...
g5 {[%clk 0:00:11.5]} 56. Kg4 {[%clk 0:00:24.6]} 56... Bf1 {[%clk 0:00:11.9]}
57. g3 {[%clk 0:00:24.4]} 57... Bg2 {[%clk 0:00:12.3]} 58. Rb5 {[%clk
0:00:23.2]} 58... e4 {[%clk 0:00:09.3]} 59. Rb2 {[%clk 0:00:18.8]} 59... Bf3+
{[%clk 0:00:08.5]} 60. Kxg5 {[%clk 0:00:18.4]} 60... e3 {[%clk 0:00:09.3]} 61.
Kf4 {[%clk 0:00:18.2]} 61... e2 {[%clk 0:00:09.5]} 62. Rb1 {[%clk 0:00:18.2]}
62... Bxd5 {[%clk 0:00:09.6]} 63. Ke3 {[%clk 0:00:15.1]} 63... Bc4 {[%clk
0:00:09.5]} 64. g4 {[%clk 0:00:12.8]} 64... d5 {[%clk 0:00:09.4]} 65. g5 {[%clk
0:00:12.3]} 65... Kd6 {[%clk 0:00:09.8]} 66. a5 {[%clk 0:00:11.6]} 66... Ke5
{[%clk 0:00:09]} 67. Rg1 {[%clk 0:00:11.4]} 67... d4+ {[%clk 0:00:07.3]} 68. Kd2
{[%clk 0:00:11.6]} 68... d3 {[%clk 0:00:07.1]} 69. g6 {[%clk 0:00:11.8]} 69...
Kd4 {[%clk 0:00:07.3]} 70. g7 {[%clk 0:00:11.9]} 70... Bg8 {[%clk 0:00:07.1]}
71. a6 {[%clk 0:00:11.6]} 71... Kc5 {[%clk 0:00:07.3]} 72. a7 {[%clk 0:00:11.7]}
72... Bd5 {[%clk 0:00:06.2]} 73. a8=Q {[%clk 0:00:12.1]} 73... Bxa8 {[%clk
0:00:06]} 74. g8=Q {[%clk 0:00:12.7]} 74... Bd5 {[%clk 0:00:06.8]} 75. Rg5
{[%clk 0:00:12.4]} 75... Kc4 {[%clk 0:00:07.3]} 76. Qxd5+ {[%clk 0:00:12.6]}
76... Kb4 {[%clk 0:00:07.5]} 77. Qb5+ {[%clk 0:00:12.7]} 77... Ka3 {[%clk
0:00:07.1]} 78. Rg6 {[%clk 0:00:13.1]} 78... e1=Q+ {[%clk 0:00:06.7]} 79. Kxe1
{[%clk 0:00:13.2]} 79... d2+ {[%clk 0:00:07.6]} 80. Kxd2 {[%clk 0:00:13.5]}
80... Ka2 {[%clk 0:00:07.9]} 81. Ra6# {[%clk 0:00:13.6]} 1-0

[Event "*** Titled Tuesday Blitz"]
[Site "Chess.com"]
[Date "2021.04.06"]
[Round "1"]
[White "serena-maria"]
[Black "Swarnapuri"]
[Result "1-0"]
[WhiteElo "2397"]
[BlackElo "2658"]
[TimeControl "180+1"]
[EndTime "10:08:53 PDT"]
[Termination "serena-maria won by resignation"]

1. Nf3 {[%clk 0:02:52.7]} 1... Nc6 {[%clk 0:03:00.9]} 2. d4 {[%clk 0:02:52.1]}
2... d5 {[%clk 0:02:59.9]} 3. Bf4 {[%clk 0:02:52]} 3... Bg4 {[%clk 0:02:57.9]}
4. e3 {[%clk 0:02:51.8]} 4... e6 {[%clk 0:02:57.6]} 5. Be2 {[%clk 0:02:51.7]}
5... Bd6 {[%clk 0:02:58]} 6. Bxd6 {[%clk 0:02:47.6]} 6... cxd6 {[%clk
0:02:58.8]} 7. h3 {[%clk 0:02:48.5]} 7... Bh5 {[%clk 0:02:58.5]} 8. c4 {[%clk
0:02:47.4]} 8... dxc4 {[%clk 0:02:57.7]} 9. Bxc4 {[%clk 0:02:48.3]} 9... Nf6
{[%clk 0:02:57.5]} 10. Nc3 {[%clk 0:02:47.9]} 10... O-O {[%clk 0:02:46.5]} 11.
O-O {[%clk 0:02:47.4]} 11... Rc8 {[%clk 0:02:11.1]} 12. Rc1 {[%clk 0:02:41.2]}
12... Bxf3 {[%clk 0:02:07.2]} 13. gxf3 {[%clk 0:02:33.3]} 13... Ne7 {[%clk
0:02:00.4]} 14. Bd3 {[%clk 0:02:31.9]} 14... Ng6 {[%clk 0:01:58]} 15. Ne4 {[%clk
0:02:28.7]} 15... Nh4 {[%clk 0:01:54.7]} 16. Rxc8 {[%clk 0:02:24.1]} 16... Qxc8
{[%clk 0:01:53.4]} 17. Nxd6 {[%clk 0:02:17.1]} 17... Qd8 {[%clk 0:01:46.6]} 18.
Ne4 {[%clk 0:02:16.8]} 18... Nxe4 {[%clk 0:01:46]} 19. fxe4 {[%clk 0:02:13.8]}
19... f5 {[%clk 0:01:46.5]} 20. exf5 {[%clk 0:02:06.6]} 20... exf5 {[%clk
0:01:31]} 21. Qb3+ {[%clk 0:01:50.8]} 21... Rf7 {[%clk 0:01:31.2]} 22. f4 {[%clk
0:01:28.3]} 22... Kf8 {[%clk 0:01:27.7]} 23. Qa3+ {[%clk 0:01:14.6]} 23... Re7
{[%clk 0:01:27.1]} 24. Kf2 {[%clk 0:01:09.6]} 24... Qd5 {[%clk 0:01:24.2]} 25.
Ke2 {[%clk 0:00:38.8]} 25... Qg2+ {[%clk 0:00:54.9]} 26. Rf2 {[%clk 0:00:38.1]}
26... Qxh3 {[%clk 0:00:54.7]} 27. Bc4 {[%clk 0:00:32.7]} 27... Qg4+ {[%clk
0:00:53.6]} 28. Kd2 {[%clk 0:00:26.7]} 28... Qg3 {[%clk 0:00:53.1]} 29. Re2
{[%clk 0:00:25.5]} 29... Nf3+ {[%clk 0:00:51]} 30. Kc3 {[%clk 0:00:25.7]} 30...
Ng1 {[%clk 0:00:47.1]} 31. Rd2 {[%clk 0:00:14.2]} 31... Qxe3+ {[%clk 0:00:45.5]}
32. Rd3 {[%clk 0:00:14.6]} 32... Ne2+ {[%clk 0:00:45.9]} 33. Kc2 {[%clk
0:00:08.1]} 33... Qc1+ {[%clk 0:00:45.5]} 34. Kb3 {[%clk 0:00:08.8]} 34... Qxf4
{[%clk 0:00:44.2]} 35. Qc5 {[%clk 0:00:08.2]} 35... Nc1+ {[%clk 0:00:44.3]} 36.
Kc2 {[%clk 0:00:07.7]} 36... g6 {[%clk 0:00:17.7]} 37. Rd2 {[%clk 0:00:04]}
37... b6 {[%clk 0:00:13.9]} 38. Qc8+ {[%clk 0:00:04.2]} 38... Kg7 {[%clk
0:00:14.3]} 39. Qg8+ {[%clk 0:00:04.4]} 39... Kh6 {[%clk 0:00:14.4]} 40. Qf8+
{[%clk 0:00:05]} 40... Kh5 {[%clk 0:00:13.4]} 41. Qxe7 {[%clk 0:00:05.2]} 41...
Nxa2 {[%clk 0:00:11.8]} 42. Qe2+ {[%clk 0:00:05.2]} 42... Kg5 {[%clk 0:00:11.5]}
43. Bxa2 {[%clk 0:00:06.1]} 43... Qc7+ {[%clk 0:00:11.4]} 44. Kd1 {[%clk
0:00:06.1]} 44... f4 {[%clk 0:00:12.2]} 45. Qg2+ {[%clk 0:00:06.4]} 45... Kf6
{[%clk 0:00:12.3]} 46. Qd5 {[%clk 0:00:06.7]} 46... g5 {[%clk 0:00:12.2]} 47.
Qe6+ {[%clk 0:00:07]} 47... Kg7 {[%clk 0:00:12.7]} 48. Qf7+ {[%clk 0:00:07.6]}
48... Qxf7 {[%clk 0:00:11.9]} 49. Bxf7 {[%clk 0:00:08.5]} 49... Kxf7 {[%clk
0:00:12.8]} 50. d5 {[%clk 0:00:09.4]} 50... Ke7 {[%clk 0:00:13.2]} 51. d6+
{[%clk 0:00:10.3]} 51... Kd7 {[%clk 0:00:14.1]} 52. Re2 {[%clk 0:00:10.1]} 52...
Kxd6 {[%clk 0:00:13.9]} 53. Rh2 {[%clk 0:00:10.8]} 53... Ke5 {[%clk 0:00:13.8]}
54. Rxh7 {[%clk 0:00:11]} 54... a5 {[%clk 0:00:13.8]} 55. Ke2 {[%clk 0:00:11.2]}
55... g4 {[%clk 0:00:13.8]} 56. Rb7 {[%clk 0:00:11.7]} 56... Ke4 {[%clk
0:00:12.7]} 57. Re7+ {[%clk 0:00:11]} 57... Kd4 {[%clk 0:00:12.6]} 58. Rb7
{[%clk 0:00:11]} 58... Ke4 {[%clk 0:00:12.9]} 59. Rxb6 {[%clk 0:00:11.4]} 59...
g3 {[%clk 0:00:13.3]} 60. Re6+ {[%clk 0:00:10.8]} 60... Kd5 {[%clk 0:00:12.7]}
61. Rf6 {[%clk 0:00:10.3]} 61... Ke4 {[%clk 0:00:12.9]} 62. Re6+ {[%clk
0:00:10.4]} 62... Kd5 {[%clk 0:00:13.4]} 63. Rg6 {[%clk 0:00:11.3]} 63... Ke4
{[%clk 0:00:13.7]} 64. Kf1 {[%clk 0:00:10.9]} 64... Kf3 {[%clk 0:00:12.6]} 65.
Rg5 {[%clk 0:00:10.4]} 65... Ke3 {[%clk 0:00:12.6]} 66. Rxa5 {[%clk 0:00:10.1]}
66... f3 {[%clk 0:00:12.8]} 67. Ra3+ {[%clk 0:00:10.5]} 67... Kf4 {[%clk
0:00:12.7]} 68. b4 {[%clk 0:00:10.8]} 68... Ke4 {[%clk 0:00:12.1]} 69. b5 {[%clk
0:00:11.1]} 69... Kd5 {[%clk 0:00:12]} 70. Rc3 {[%clk 0:00:11.1]} 70... g2+
{[%clk 0:00:12.9]} 71. Kg1 {[%clk 0:00:10.9]} 1-0